Cogmind - Beta 15 @@@ ROGUE MODE // 2025.05.16 @ 23:11:41 Player: AkimboAoki Result: Self-destructed Performance ------------- Evolutions (5) 2500 Regions Visited (14) 2800 Robots Destroyed (78) 390 Value Destroyed (2287) 2287 Prototype IDs (37) 740 Alien Tech Used (0) 0 Bonus (831) 831 TOTAL SCORE: 9548 Bonus ------- Follower Combat Kills 136 Entered DSFs 500 Aligned with FarCom 300 Friendly Fire -105 Cogmind --------- Core Integrity 771/1000 Matter 300/300 Energy 520/520 System Corruption 5% Temperature Warm (189) Movement Walking (190) Ox1 Location -5/Extension Parts ------- > --- POWER (2) -------- Reinforced Fission Core Reinforced Fission Core > --- PROPULSION (6) --- Carbon-fiber Leg Flexi-carbon Leg Armored Wheel Combat Gravmag System > --- UTILITY (7) ------ Advanced Signal Interpreter Improved Medium Armor Plating Improved Hacking Suite System Shield System Shield Improved System Shield > --- WEAPON (2) ------- (None) > --- INVENTORY (5) ---- Reinforced Fission Core Compact Wheel Advanced ECM Suite EM Shield Peak State ------------ > --- POWER ------------ Reinforced Fission Core Reinforced Fission Core > --- PROPULSION ------- Flexi-carbon Leg Thunder Leg Armored Wheel Armored Wheel Improved Hover Unit Combat Gravmag System > --- UTILITY ---------- Improved Coolant Injector Advanced Signal Interpreter Advanced Shield Generator Improved Hacking Suite System Shield System Shield Improved System Shield > --- WEAPON ----------- Latent Energy Streamer Advanced Plasma Cannon > --- INVENTORY -------- Reinforced Fission Core Advanced ECM Suite EM Shield Improved Dynamic Insulation System Wave Gun [Rating: 86] Favorites ----------- Power Light Deuterium Engine Engine Light Deuterium Engine Power Core Micro Nuclear Core Propulsion Aluminum Leg Treads Advanced Treads Leg Aluminum Leg Wheel Armored Wheel Hover Unit Combat Gravmag System Flight Unit Surge Thruster Utility System Shield Device Improved Heat Sink Storage Small Storage Unit Processor Signal Interpreter Hackware System Shield Protection Reflective Plating Weapon Heavy Particle Gun Energy Gun Heavy Particle Gun Energy Cannon Cooled Particle Cannon Ballistic Gun Gauss Rifle Launcher Rocket Launcher Special Weapon Plasma Flamer Slashing Weapon Chainsword Build | -11 -10 -10 -9 -9 -9 -8 -8 -7 -7 -6 -6 -6 -5 -5 ------- Run | Yrd Mat Min Mat Min Exi Min Mat Fac DSF Fac Low Low Fac Ext Slots Evolved 10 | . . . 2 . . . 2 2 . 2 . . 2 . Power 1 | . . . . . . . . . . . . . 1 . Propulsion 4 | . . . 1 . . . 1 1 . 1 . . . . Utility 5 | . . . 1 . . . 1 1 . 1 . . 1 . Weapon . | . . . . . . . . . . . . . . . Parts Attached 104 | 7 4 5 5 2 . 4 10 1 10 25 4 5 14 8 Power 11 | 1 . 1 . . . 1 . . 1 2 . 1 2 2 Engine 5 | 1 . 1 . . . 1 . . . . . 1 1 . Core 6 | . . . . . . . . . 1 2 . . 1 2 Reactor . | . . . . . . . . . . . . . . . Propulsion 38 | 2 1 3 . 1 . 1 5 . 3 11 2 1 5 3 Treads 3 | . . . . . . . . . 3 . . . . . Leg 19 | 2 1 2 . 1 . 1 5 . . 3 . 1 1 2 Wheel 4 | . . 1 . . . . . . . . . . 2 1 Hover 4 | . . . . . . . . . . 2 . . 2 . Flight 8 | . . . . . . . . . . 6 2 . . . Utility 33 | 2 2 . 2 1 . . 3 1 4 9 1 1 4 3 Device 19 | 1 1 . 2 1 . . . 1 1 7 1 . 2 2 Storage 3 | 1 . . . . . . 2 . . . . . . . Processor 2 | . 1 . . . . . . . . 1 . . . . Hackware 5 | . . . . . . . . . 1 1 . 1 2 . Protection 4 | . . . . . . . 1 . 2 . . . . 1 Artifact . | . . . . . . . . . . . . . . . Weapon 22 | 2 1 1 3 . . 2 2 . 2 3 1 2 3 . Energy Gun 10 | 2 . . 2 . . 1 1 . 1 1 1 . 1 . Energy Cannon 4 | . . . . . . 1 . . . 1 . . 2 . Ballistic Gun 1 | . . . . . . . . . 1 . . . . . Ballistic Cannon . | . . . . . . . . . . . . . . . Launcher 4 | . 1 1 1 . . . 1 . . . . . . . Special Weapon 2 | . . . . . . . . . . . . 2 . . Impact Weapon . | . . . . . . . . . . . . . . . Slashing Weapon 1 | . . . . . . . . . . 1 . . . . Piercing Weapon . | . . . . . . . . . . . . . . . Special Melee Weapon . | . . . . . . . . . . . . . . . Unidentified Prototypes 7 | . . . 1 . . . 1 . . 2 1 . 2 . Corrupted Parts 2 | . . . . . . . 2 . . . . . . . System Corruption 12 | . . . . . . . 12 . . . . . . . Parts Lost 51 | . 1 1 . . . 1 2 . 19 2 4 9 3 9 Power 4 | . . . . . . . . . 2 . . 2 . . Propulsion 23 | . 1 1 . . . . 1 . 7 2 3 2 2 4 Utility 10 | . . . . . . . 1 . 5 . . 2 . 2 Weapon 14 | . . . . . . 1 . . 5 . 1 3 1 3 Highest Loss Streak 16 | . 1 1 . . . 1 2 . 16 1 3 5 2 6 To Critical Strikes . | . . . . . . . . . . . . . . . Average Backups 5 | 4 5 4 4 5 4 4 7 9 7 4 4 4 4 4 Power . | . 1 1 1 1 1 1 1 1 . . . . . . Propulsion . | 2 1 . . . 1 1 1 3 2 . . . . . Utility 1 | . . 1 1 1 1 1 2 1 2 2 3 2 3 2 Weapon 2 | . 2 2 2 2 1 1 2 4 2 2 1 1 1 . Tool/Special . | . . . . . . . . . . . . . . . Unused Backups 22 | . 5 1 3 1 1 . 3 . . 3 . . . 5 Power 3 | . . 1 . . . . 1 . . . . . . 1 Propulsion 4 | . 3 . . . . . . . . . . . . 1 Utility 7 | . 1 . 1 . . . 1 . . 1 . . . 3 Weapon 8 | . 1 . 2 1 1 . 1 . . 2 . . . . Tool/Special . | . . . . . . . . . . . . . . . Average Slot Usage (%) 94 | . 93 100 99 100 100 100 99 93 73 91 91 72 71 97 Engine 7 | . 14 14 11 11 11 11 9 7 2 . . 4 3 1 Core 1 | . . . . . . . . . 2 4 6 . 3 9 Treads 1 | . . . . . . . . . 2 8 . . . . Leg 22 | . 22 27 33 33 33 33 35 38 24 9 . 4 8 14 Hover 1 | . . . . . . . . . . 3 . . 4 7 Flight 5 | . . . . . . . . . . 15 33 13 1 . Device 16 | . 13 14 21 22 22 22 15 8 8 20 20 10 4 7 Storage 1 | . 3 . . . . . 8 7 5 . . . . . Processor 8 | . 10 14 11 11 11 11 9 7 6 5 6 6 5 5 Hackware 5 | . . . . . . . . . 1 7 13 19 26 23 Energy Gun 8 | . 19 14 11 11 11 11 15 7 5 2 2 . . 2 Energy Cannon 1 | . . . . . . . . . . 3 6 . 5 7 Launcher 5 | . 8 14 11 11 11 10 2 7 3 . . . . . Peak Build Rating 86 | 9 9 12 19 21 21 32 35 40 41 68 65 56 77 86 Average Rating 36 | 6 7 10 18 20 20 25 31 36 29 57 59 50 56 81 On Entrance 28 | . 9 7 12 19 21 21 27 33 40 14 58 54 31 77 Naked Turns . | . . . . . . . . . . . . . . . Heaviest Build 69 | 15 15 12 15 15 15 15 28 29 36 21 24 20 40 69 Greatest Support 75 | 20 20 22 32 32 32 42 69 75 75 66 26 20 43 73 Greatest Overweight (x) 1 | . 1 . . . . . . . 1 1 1 . . 1 Average Overweight (x) . | . . . . . . . . . . . . . . . Largest Inventory Capacity 10 | 8 8 5 5 5 5 5 10 10 10 5 5 5 5 5 Average Capacity 5 | 7 5 5 5 5 5 5 8 10 8 5 5 5 5 5 Most Carried 10 | 8 8 5 5 5 5 5 10 10 10 5 5 5 5 5 Average Carried 5 | 4 5 4 4 5 4 4 7 9 7 4 4 4 4 4 Final Capacity 10 | 8 5 5 5 5 5 5 10 10 5 5 5 5 5 5 Final Carried 10 | 8 5 5 5 5 5 4 10 10 5 5 5 3 5 4 Class Distribution -------------------- 44% | Mutant 27% | Scavenger-Mutant 22% | Hacker-Mutant 5% | Assassin Dominant Class ---------------- Mutant | -10/Materials Mutant | -10/Mines Mutant | -9/Materials Mutant | -9/Mines Mutant | -9/Exiles Scavenger-Mutant | -8/Mines Scavenger-Mutant | -8/Materials Scavenger-Mutant | -7/Factory Mutant | -7/DSF Assassin | -6/Factory Hacker-Mutant | -6/Lower Caves Hacker-Mutant | -6/Lower Caves Hacker-Mutant | -5/Factory Hacker-Mutant | -5/Extension Resources | -11 -10 -10 -9 -9 -9 -8 -8 -7 -7 -6 -6 -6 -5 -5 ----------- Run | Yrd Mat Min Mat Min Exi Min Mat Fac DSF Fac Low Low Fac Ext Matter Collected 1642 | 270 70 137 71 86 . 73 179 . 115 209 125 55 57 195 Remotely . | . . . . . . . . . . . . . . . Salvage Created 2649 | 49 183 119 233 284 . 75 568 . 75 280 . 35 75 673 Parts 159 | 6 16 2 14 15 . 17 31 . 4 24 . . 5 25 Haulers Intercepted 1 | . 1 . . . . . . . . . . . . . Recyclers Shooed 1 | . . . . . . . 1 . . . . . . . Parts Field Recycled . | . . . . . . . . . . . . . . . Retrieved Matter . | . . . . . . . . . . . . . . . Parts Self-Destructed 7 | . . . . . . . . . . . 7 . . . Prevented . | . . . . . . . . . . . . . . . Kills | -11 -10 -10 -9 -9 -9 -8 -8 -7 -7 -6 -6 -6 -5 -5 ------- Run | Yrd Mat Min Mat Min Exi Min Mat Fac DSF Fac Low Low Fac Ext Combat Hostiles Destroyed 64 | . 6 5 4 8 . 9 14 . 1 6 . 1 . 10 Melee 1 | . . . . . . . . . . 1 . . . . Guns 26 | . 4 3 3 6 . 2 7 . 1 . . . . . Cannons 13 | . . . . . . . . . . 5 . 1 . 7 AOE 21 | . 2 2 1 2 . 7 7 . . . . . . . Classes Destroyed 17 | 1 4 1 2 . . 1 3 . 1 2 . . 1 1 Worker 2 | . . . . . . . 1 . . 1 . . . . Tunneler 4 | 2 1 . . . . . . . . 1 . . . . Hauler 1 | . 1 . . . . . . . . . . . . . Recycler 2 | . . . . . . . 1 . . . . . . 1 Mechanic 1 | . . . . . . . . . . . . . 1 . Operator 3 | . 2 . . . . . . . . 1 . . . . Watcher 2 | . . . 1 . . . . . . . . . 1 . Swarmer 24 | . 4 1 . . . 9 7 . . . . . . 3 Cutter 3 | . . . . . . . . . . 3 . . . . Grunt 16 | . 2 2 . 6 . . 4 . . . . 1 . 1 Duelist 1 | . . . . . . . 1 . . . . . . . Sentry 11 | . . . 4 2 . . 2 . . 1 . . . 2 Specialist 1 | . . . . . . . . . 1 . . . . . Programmer 2 | . . . . . . . . . . 2 . . . . Zionite 1 | . . . . . . 1 . . . . . . . . Assembled 2 | . . 2 . . . . . . . . . . . . Thug 1 | . . . . . . . . . . . . . . 1 Savage 3 | . . . . . . . . . . . . . . 3 Best Kill Streak 4 | 1 2 2 3 3 . 4 4 . 1 3 . 1 1 4 Combat Bots Only 4 | . 2 2 2 3 . 4 4 . 1 3 . 1 . 4 Max Kills in Single Turn 4 | 1 2 1 2 1 . 4 2 . 1 1 . 1 1 1 Gunslinging 1 | . 1 . . . . . . . . . . . . . Exploded 3 | . 2 1 1 1 . 3 2 . . . . . . . Melee 1 | . . . . . . . . . . 1 . . . . Uniques/NPCs Destroyed . | . . . . . . . . . . . . . . . Combat | -11 -10 -10 -9 -9 -9 -8 -8 -7 -7 -6 -6 -6 -5 -5 -------- Run | Yrd Mat Min Mat Min Exi Min Mat Fac DSF Fac Low Low Fac Ext Hostile Shots Fired 690 | . 62 9 26 23 . 26 38 . 252 80 25 44 . 105 Missed 239 | . 19 3 9 10 . 10 10 . 89 30 11 14 . 34 Hits 451 | . 43 6 17 13 . 16 28 . 163 50 14 30 . 71 Melee 8 | . . 1 . . . 1 . . 2 4 . . . . Projectile 443 | . 43 5 17 13 . 15 28 . 161 46 14 30 . 71 Critical Strikes 11 | . . . 1 . . . . . 2 1 . 2 . 5 Damage Taken 6917 | . 374 148 175 142 . 221 359 . 2618 603 282 581 81 1333 Core 1259 | . 86 25 41 48 . 25 49 . 565 32 57 102 . 229 Absorbed by Shields 274 | . . . 67 54 . 88 29 . . . . . . 36 Ignored by Resistances 56 | . . . . . . . 14 . 6 36 . . . . Regen/Repaired (Parts) 90 | . . . . . . . . . . . . . 90 . Core Remaining (%) 68 | 100 . 55 . . . 71 91 . 19 . . 77 . . Volleys Fired 239 | 4 31 19 18 33 . 12 34 . 15 12 5 6 6 44 Largest 2 | 2 2 1 2 2 . 2 2 . 2 1 2 2 1 2 Hottest 200 | 100 100 50 88 88 . 110 116 . 116 90 175 200 98 179 Shots Fired 298 | 8 47 19 19 39 . 15 42 . 21 12 7 12 6 51 Gun 180 | 8 44 11 18 33 . 8 30 . 17 2 2 . . 7 Cannon 65 | . . . . . . . . . . 10 5 . 6 44 Launcher 41 | . 3 8 1 6 . 7 12 . 4 . . . . . Special 12 | . . . . . . . . . . . . 12 . . Kinetic . | . . . . . . . . . . . . . . . Thermal 251 | 8 44 11 18 33 . 8 30 . 17 10 7 12 6 47 Explosive 25 | . 3 8 1 6 . 7 . . . . . . . . Electromagnetic 22 | . . . . . . . 12 . 4 2 . . . 4 Robot Hit Streak 17 | 6 4 8 7 4 . 5 17 . 7 4 4 3 3 10 Robot Miss Streak 6 | 1 6 1 1 2 . 1 3 . 2 1 1 2 2 2 Penetration Max . | . . . . . . . . . . . . . . . Secondary Targets 2 | . 1 . . . . . 1 . . . . . . . Max Gunslinging Chain 1 | . 1 . . . . . 1 . . . . . . . Shots Hit Robots 193 | 7 21 9 16 23 . 9 27 . 13 16 5 7 4 36 Core Hits 126 | 2 14 9 8 15 . 13 23 . 3 8 1 4 2 24 Critical Kills 2 | . . . . . . . . . . . . . . 2 Critical Parts Destroyed . | . . . . . . . . . . . . . . . Critical Strikes 12 | . 1 3 2 1 . . . . 2 1 . . . 2 Burn 9 | . 1 3 2 1 . . . . 2 . . . . . Meltdown 2 | . . . . . . . . . . . . . . 2 Sever 1 | . . . . . . . . . . 1 . . . . Melee Attacks 13 | . . . . . . . . . . 13 . . . . Impact . | . . . . . . . . . . . . . . . Slashing 13 | . . . . . . . . . . 13 . . . . Piercing . | . . . . . . . . . . . . . . . Sneak Attacks 3 | . . . . . . . . . . 3 . . . . Combat Hostiles . | . . . . . . . . . . . . . . . Follow-up Attacks . | . . . . . . . . . . . . . . . Damage Inflicted 5965 | 87 417 188 324 718 . 710 805 . 351 678 202 91 132 1262 Guns 2050 | 87 260 113 257 385 . 117 398 . 238 15 36 . . 144 Cannons 1593 | . . . . . . . . . . 279 166 . 132 1016 Explosions 1881 | . 157 75 67 333 . 593 407 . 113 34 . . . 102 Melee 350 | . . . . . . . . . . 350 . . . . Ramming . | . . . . . . . . . . . . . . . Kinetic . | . . . . . . . . . . . . . . . Thermal 3738 | 87 260 113 257 385 . 117 398 . 238 313 202 91 132 1145 Explosive 1225 | . 157 75 67 333 . 593 . . . . . . . . Electromagnetic 652 | . . . . . . . 407 . 113 15 . . . 117 Impact . | . . . . . . . . . . . . . . . Slashing 350 | . . . . . . . . . . 350 . . . . Piercing . | . . . . . . . . . . . . . . . Highest Corruption 12 | . . . . . . . 12 . 2 2 2 2 . 5 Average Corruption 2 | . . . . . . . 7 . 2 1 2 2 . 4 Corruption Purged . | . . . . . . . . . . . . . . . Corruption Blocked . | . . . . . . . . . . . . . . . Effects 42 | . . . . . . . . . . 18 12 4 . 8 Message Errors 9 | . . . . . . . . . . 3 3 1 . 2 Matter Fused 5 | . . . . . . . . . . 3 1 . . 1 Heat Flow Errors 7 | . . . . . . . . . . 3 1 1 . 2 Energy Discharges 5 | . . . . . . . . . . 3 1 . . 1 Data Loss (minor) 10 | . . . . . . . . . . 2 5 2 . 1 Data Loss (major) 2 | . . . . . . . . . . 2 . . . . Misfires 1 | . . . . . . . . . . . 1 . . . Alerts 2 | . . . . . . . . . . 2 . . . . Weapon Failures 1 | . . . . . . . . . . . . . . 1 Overload Shots 7 | . . . . . . . . . . 3 4 . . . Overflow Damage 124 | . . . . . . 33 29 . . 31 4 . . 27 Projectiles 31 | . . . . . . . . . . . 4 . . 27 Explosions 62 | . . . . . . 33 29 . . . . . . . Melee 31 | . . . . . . . . . . 31 . . . . Knockbacks . | . . . . . . . . . . . . . . . Impact . | . . . . . . . . . . . . . . . Kinetic . | . . . . . . . . . . . . . . . Secondary . | . . . . . . . . . . . . . . . Self-Inflicted Damage 320 | . 31 58 . 12 . 116 79 . . . . . . 24 Shots 14 | . 1 2 . 1 . 3 6 . . . . . . 1 Rammed . | . . . . . . . . . . . . . . . Targets Rammed . | . . . . . . . . . . . . . . . Kicked . | . . . . . . . . . . . . . . . Crushed . | . . . . . . . . . . . . . . . Highest Temperature 360 | 117 273 4 15 . . 18 39 . . 213 300 253 90 360 Average Temperature 98 | 49 127 2 4 . . 6 16 . . 70 79 123 41 120 Received Heat Transfer 1400 | . . 39 73 52 . 48 87 . 162 24 126 261 . 528 Effects 1 | . . . . . . . . . . . 1 . . . Damage (minor) 1 | . . . . . . . . . . . 1 . . . Siege Activations . | . . . . . . . . . . . . . . . Martial Activations . | . . . . . . . . . . . . . . . Shielding Activations . | . . . . . . . . . . . . . . . Robots Disrupted . | . . . . . . . . . . . . . . . Combat Hostiles . | . . . . . . . . . . . . . . . Robots Corrupted . | . . . . . . . . . . . . . . . Combat Hostiles . | . . . . . . . . . . . . . . . Parts Fried . | . . . . . . . . . . . . . . . Impact Corruptions . | . . . . . . . . . . . . . . . Robots Melted 3 | . . . . . . . . . . . . . . 3 Combat Hostiles 2 | . . . . . . . . . . . . . . 2 Parts Melted 18 | . 1 1 5 1 . 1 1 . . 3 . 2 . 3 Heat Transferred 7914 | 259 851 555 703 814 . 222 777 . 629 372 250 560 200 1722 Parts Sabotaged . | . . . . . . . . . . . . . . . Parts Stolen . | . . . . . . . . . . . . . . . Parts Stripped . | . . . . . . . . . . . . . . . Power Chain Reactions 3 | . . . . . . . 2 . . 1 . . . . Latent Energy Used 145 | . . . . . . . . . . . . . . 145 LE Corruption 4 | . . . . . . . . . . . . . . 4 Alert | -11 -10 -10 -9 -9 -9 -8 -8 -7 -7 -6 -6 -6 -5 -5 ------- Run | Yrd Mat Min Mat Min Exi Min Mat Fac DSF Fac Low Low Fac Ext Maximum Alert Level 1 | . . . . . . . 1 . . . . . . 1 Low Security (%) 96 | 100 100 100 100 100 . 100 89 100 100 100 . . 100 76 Level 1 3 | . . . . . . . 10 . . . . . . 23 Level 2 . | . . . . . . . . . . . . . . . Level 3 . | . . . . . . . . . . . . . . . Level 4 . | . . . . . . . . . . . . . . . Level 5 . | . . . . . . . . . . . . . . . High Security . | . . . . . . . . . . . . . . . Max Security . | . . . . . . . . . . . . . . . Peak Influence 305 | 5 94 131 70 87 . 129 305 129 77 71 . . 10 240 Initial 129 | . . 2 15 24 . . 9 129 62 2 . . . . Average 32 | 1 41 33 10 25 . 44 44 110 36 9 . . . 94 Influence Increases 2515 | 10 210 258 138 218 . 294 430 . 110 250 60 80 29 428 Destroy 0b10 Robot/C 1320 | . 120 60 80 160 . 180 280 . 20 120 . 20 . 280 Destroy 0b10 Robot/NC 75 | 10 20 . 5 . . . 10 . . 15 . . 10 5 Destroy Leader 236 | . 22 20 42 10 . 30 50 . . 40 . . 2 20 Allied During Kill 29 | . . . . . . . . . . . . . . 29 Successful Hack 92 | . 28 . . . . . . . . 11 . . 17 36 Disable Machine 225 | . . 105 . . . 15 60 . 15 . . . . 30 Destroy Structure 268 | . 20 73 11 48 . 69 15 . . 4 . . . 28 Partial Spotted 30 | . . . . . . . 15 . . 15 . . . . Lose Combat Pursuer 240 | . . . . . . . . . 75 45 60 60 . . Influence Decreases 2355 | 10 203 224 117 259 21 270 169 196 194 224 91 80 29 268 Entered New Map 304 | . . 5 26 38 21 . 15 156 27 3 13 . . . Time Decay 1729 | 10 193 219 91 221 . 260 134 40 . 211 78 70 24 178 Lost Part 302 | . 10 . . . . 10 20 . 167 10 . 10 5 70 Lost Ally 20 | . . . . . . . . . . . . . . 20 Squads Dispatched 13 | . . 1 . . . . 2 . 1 7 . . 2 . Investigation 2 | . . 1 . . . . 1 . . . . . . . Extermination 5 | . . . . . . . . . . 3 . . 2 . Reinforcement 6 | . . . . . . . 1 . 1 4 . . . . Assault . | . . . . . . . . . . . . . . . Garrison . | . . . . . . . . . . . . . . . Intercept . | . . . . . . . . . . . . . . . Searches Triggered . | . . . . . . . . . . . . . . . Construction Impeded . | . . . . . . . . . . . . . . . Haulers Reinforced 1 | . . . . . . . . . . 1 . . . . Active Scanning Responses . | . . . . . . . . . . . . . . . Cargo Convoy Interrupts . | . . . . . . . . . . . . . . . Stealth | -11 -10 -10 -9 -9 -9 -8 -8 -7 -7 -6 -6 -6 -5 -5 --------- Run | Yrd Mat Min Mat Min Exi Min Mat Fac DSF Fac Low Low Fac Ext Distress Signals 6 | . . . 2 . . . 2 . . . . . . 2 Communications Jammed 3 | . . . . . . . . . . 3 . . . . Distress Signals 3 | . . . . . . . . . . 3 . . . . Times Spotted 138 | . 13 5 8 5 . 10 22 . 14 16 18 8 3 16 Peak Tracking Total 7 | . 7 2 4 3 . 3 6 . 7 6 7 4 1 6 Tactical Retreats 18 | . . 1 . . . . . . 4 2 10 1 . . Traps | -11 -10 -10 -9 -9 -9 -8 -8 -7 -7 -6 -6 -6 -5 -5 ------- Run | Yrd Mat Min Mat Min Exi Min Mat Fac DSF Fac Low Low Fac Ext Traps Triggered 6 | . . . . . . . 1 . 1 1 . . 1 2 Indirectly 1 | . . . . . . . 1 . . . . . . . Trap Hack Attempts . | . . . . . . . . . . . . . . . Triggered . | . . . . . . . . . . . . . . . Disarmed . | . . . . . . . . . . . . . . . Reprogrammed . | . . . . . . . . . . . . . . . Reused . | . . . . . . . . . . . . . . . Traps Extracted . | . . . . . . . . . . . . . . . Installed . | . . . . . . . . . . . . . . . Triggered . | . . . . . . . . . . . . . . . Machines | -11 -10 -10 -9 -9 -9 -8 -8 -7 -7 -6 -6 -6 -5 -5 ---------- Run | Yrd Mat Min Mat Min Exi Min Mat Fac DSF Fac Low Low Fac Ext Machines Disabled 18 | . . 7 . 2 . 1 4 . 1 . . . . 3 Max in Single Turn 7 | . . 7 . 2 . 1 2 . 1 . . . . 1 Machines Repaired . | . . . . . . . . . . . . . . . Machines Dismantled . | . . . . . . . . . . . . . . . Machines Sabotaged . | . . . . . . . . . . . . . . . Overloaded Fab Kills . | . . . . . . . . . . . . . . . Hacking | -11 -10 -10 -9 -9 -9 -8 -8 -7 -7 -6 -6 -6 -5 -5 --------- Run | Yrd Mat Min Mat Min Exi Min Mat Fac DSF Fac Low Low Fac Ext Machines Accessed 23 | . 6 2 . . 3 . 2 1 . 3 . . 3 3 Terminals 17 | . 5 1 . . . . 2 1 . 3 . . 2 3 Fabricators . | . . . . . . . . . . . . . . . Repair Stations 1 | . . . . . . . . . . . . . 1 . Recycling Units 1 | . 1 . . . . . . . . . . . . . Scanalyzers . | . . . . . . . . . . . . . . . Garrison Access . | . . . . . . . . . . . . . . . Total Hacks 88 | . 16 3 . . 6 . 5 1 . 8 . . 28 21 Successful 47 | . 11 2 . . 6 . 1 1 . 3 . . 12 11 Failed 41 | . 5 1 . . . . 4 . . 5 . . 16 10 Catastrophic 3 | . . . . . . . 1 . . . . . 2 . Database Lockouts . | . . . . . . . . . . . . . . . Manual 40 | . 9 . . . 1 . 5 . . 4 . . 10 11 Terminals 71 | . 15 2 . . . . 5 1 . 8 . . 19 21 Fabricators . | . . . . . . . . . . . . . . . Repair Stations 9 | . . . . . . . . . . . . . 9 . Recycling Units 1 | . 1 . . . . . . . . . . . . . Scanalyzers . | . . . . . . . . . . . . . . . Garrison Access . | . . . . . . . . . . . . . . . Terminal Hacks 35 | . 7 2 . . 6 . . 1 . 2 . . 8 9 Record 6 | . . . . . 5 . . . . . . . . 1 Prototype ID Bank 4 | . 1 . . . . . . . . 1 . . 1 1 Open Door 2 | . . 1 . . . . . . . . . . . 1 Open DSF 1 | . . . . . . . . 1 . . . . . . Level Access Points 2 | . . . . . . . . . . . . . 1 1 Branch Access Points 2 | . 1 . . . . . . . . . . . 1 . Terminal Index 4 | . 1 . . . . . . . . 1 . . 1 1 Locate Traps 4 | . 2 . . . . . . . . . . . 1 1 Dispatch Records 1 | . . . . . . . . . . . . . . 1 Recall Extermination 1 | . . . . . . . . . . . . . 1 . Registered Components 3 | . 1 . . . . . . . . . . . 1 1 Registered Prototypes 1 | . . . . . . . . . . . . . . 1 Zone Layout 3 | . 1 1 . . . . . . . . . . 1 . Proto ID Catalog 1 | . . . . . 1 . . . . . . . . . Fabricator Hacks . | . . . . . . . . . . . . . . . Repair Station Hacks 3 | . . . . . . . . . . . . . 3 . Scan Component 2 | . . . . . . . . . . . . . 2 . Repair 1 | . . . . . . . . . . . . . 1 . Recycling Unit Hacks . | . . . . . . . . . . . . . . . Scanalyzer . | . . . . . . . . . . . . . . . Garrison Access Hacks . | . . . . . . . . . . . . . . . Unauthorized Hacks 8 | . 3 . . . . . 1 . . 1 . . 1 2 Terminals 8 | . 3 . . . . . 1 . . 1 . . 1 2 Assimilate 1 | . . . . . . . 1 . . . . . . . Botnet 7 | . 3 . . . . . . . . 1 . . 1 2 Fabricators . | . . . . . . . . . . . . . . . Repair Stations . | . . . . . . . . . . . . . . . Recycling Units . | . . . . . . . . . . . . . . . Scanalyzers . | . . . . . . . . . . . . . . . Garrison Access . | . . . . . . . . . . . . . . . Data Cores Recovered 3 | . 2 . . . . . . . . 1 . . . . Used 3 | . 2 . . . . . . . . 1 . . . . Hacking Detections 15 | . 5 1 . . . . 2 . . 3 . . 2 2 Full Trace Events 1 | . . . . . . . 1 . . . . . . . Feedback Events . | . . . . . . . . . . . . . . . Feedback Blocked . | . . . . . . . . . . . . . . . Robot Schematics Acquired . | . . . . . . . . . . . . . . . Robots Built . | . . . . . . . . . . . . . . . Authchips . | . . . . . . . . . . . . . . . Time . | . . . . . . . . . . . . . . . Total Robot Build Rating . | . . . . . . . . . . . . . . . Part Schematics Acquired . | . . . . . . . . . . . . . . . Parts Built . | . . . . . . . . . . . . . . . Authchips . | . . . . . . . . . . . . . . . Time . | . . . . . . . . . . . . . . . Total Part Build Rating . | . . . . . . . . . . . . . . . Parts Repaired 1 | . . . . . . . . . . . . . 1 . Time 35 | . . . . . . . . . . . . . 35 . Parts Recycled . | . . . . . . . . . . . . . . . Recycled Matter . | . . . . . . . . . . . . . . . Retrieved Matter . | . . . . . . . . . . . . . . . Retrieved Components . | . . . . . . . . . . . . . . . Parts Scanalyzed . | . . . . . . . . . . . . . . . Part Schematics Acquired . | . . . . . . . . . . . . . . . Parts Damaged . | . . . . . . . . . . . . . . . Bothacking | -11 -10 -10 -9 -9 -9 -8 -8 -7 -7 -6 -6 -6 -5 -5 ------------ Run | Yrd Mat Min Mat Min Exi Min Mat Fac DSF Fac Low Low Fac Ext Used RIF Installer . | . . . . . . . . . . . . . . . Robots Hacked . | . . . . . . . . . . . . . . . Non-combat . | . . . . . . . . . . . . . . . Combat . | . . . . . . . . . . . . . . . Robot Hacks Applied . | . . . . . . . . . . . . . . . Relay Couplers Released . | . . . . . . . . . . . . . . . Fabnet Peak Effective % . | . . . . . . . . . . . . . . . Robots Rewired . | . . . . . . . . . . . . . . . Allies Hacked . | . . . . . . . . . . . . . . . Hacks Repelled . | . . . . . . . . . . . . . . . Allies | -11 -10 -10 -9 -9 -9 -8 -8 -7 -7 -6 -6 -6 -5 -5 -------- Run | Yrd Mat Min Mat Min Exi Min Mat Fac DSF Fac Low Low Fac Ext Total Allies 2 | . . . . . . . . . . . . . . 2 Largest Group 2 | . . . . . . . . . . . . . . 2 Highest-Rated Group 70 | . . . . . . . . . . . . . . 70 Highest-Rated Ally 39 | . . . . . . . . . . . . . . 39 Total Orders . | . . . . . . . . . . . . . . . Ally Attacks 34 | . . . . . . . . . . . . . . 34 Total Damage 301 | . . . . . . . . . . . . . . 301 Kills 4 | . . . . . . . . . . . . . . 4 Allies Corrupted . | . . . . . . . . . . . . . . . Allies Melted . | . . . . . . . . . . . . . . . Intel | -11 -10 -10 -9 -9 -9 -8 -8 -7 -7 -6 -6 -6 -5 -5 ------- Run | Yrd Mat Min Mat Min Exi Min Mat Fac DSF Fac Low Low Fac Ext Active Infowar (turns) 1382 | 42 89 . . . . . . . . 1031 220 . . . IFF 370 | . . . . . . . . . . 370 . . . . Terrain 131 | 42 89 . . . . . . . . . . . . . Jamming 898 | . . . . . . . . . . 678 220 . . . Robot Analysis Total . | . . . . . . . . . . . . . . . Derelict Logs Recovered 4 | . . 1 . 2 . . . . . . 1 . . . Drone Launches . | . . . . . . . . . . . . . . . Drone Recoveries . | . . . . . . . . . . . . . . . Exploration | -11 -10 -10 -9 -9 -9 -8 -8 -7 -7 -6 -6 -6 -5 -5 ------------- Run | Yrd Mat Min Mat Min Exi Min Mat Fac DSF Fac Low Low Fac Ext Turns Passed 9503 | 109 406 1194 447 732 359 817 1532 93 205 1349 904 210 654 492 Spaces Moved 7524 | 62 229 1028 338 590 323 647 855 75 120 1052 1295 201 459 250 Core 34 | 5 . . . . . . . . 29 . . . . . Treads 78 | . . . . . . . . . 17 61 . . . . Legs 5595 | 57 229 1023 338 590 323 647 855 75 74 549 . 126 459 250 Wheels 5 | . . 5 . . . . . . . . . . . . Hover . | . . . . . . . . . . . . . . . Flight 1812 | . . . . . . . . . . 442 1295 75 . . Fastest Speed 5 | 50 120 100 110 110 110 110 116 120 50 5 6 19 120 120 Average Speed 103 | 114 132 107 110 110 110 115 119 120 108 96 67 87 120 142 Slowest Speed 200 | 120 190 120 110 110 110 116 130 120 200 190 77 120 120 190 Overloaded Moves 109 | . . . . . . . . . . 48 60 1 . . Propulsion Burnouts 2 | . . . . . . . . . . 1 1 . . . Robots Hopped 3 | . . . . . . . . . . 2 1 . . . Potential Cave-ins . | . . . . . . . . . . . . . . . Cave-ins Triggered . | . . . . . . . . . . . . . . . Exploration Rate (%) 51 | 4 41 99 29 100 65 96 49 3 88 26 99 18 15 41 Regions Visited 14 Branch Regions 7 Pre-discovered Areas 3 | . . 1 . 1 1 . . . . . . . . . Known Exits Taken 12 | . 1 1 1 1 1 1 1 1 . 1 1 1 1 . Unknown Exits Taken 1 | 1 . . . . . . . . . . . . . . Scrap Searched 12 | . . 2 . 1 . 1 . . . . 3 5 . . Spaces Dug 60 | . . 40 . . . 20 . . . . . . . . Terrain Destroyed 305 | . 20 105 10 70 . 73 17 . . 3 1 . . 6 Melee . | . . . . . . . . . . . . . . . Projectile 9 | . . . . 1 . . . . . 1 1 . . 6 AOE 296 | . 20 105 10 69 . 73 17 . . 2 . . . . Terrain Rammed . | . . . . . . . . . . . . . . . Walls Destroyed . | . . . . . . . . . . . . . . . Machines Disabled . | . . . . . . . . . . . . . . . Actions | -11 -10 -10 -9 -9 -9 -8 -8 -7 -7 -6 -6 -6 -5 -5 --------- Run | Yrd Mat Min Mat Min Exi Min Mat Fac DSF Fac Low Low Fac Ext Total 8875 | 88 285 1104 401 636 327 699 1323 78 173 1347 1314 216 550 334 Wait 858 | 8 13 45 27 8 3 35 407 . 17 214 8 . 61 12 Move 7504 | 61 228 1027 337 589 322 646 854 74 119 1047 1292 200 458 250 Hop 3 | . . . . . . . . . . 2 1 . . . Pick Up 53 | 8 2 3 5 1 1 . 12 2 3 8 2 . 3 3 Fast Attach 64 | 7 3 . 2 . . . 1 . 5 21 1 4 16 4 Attach 28 | . . 1 1 . . 1 3 2 9 3 2 3 2 1 Detach 4 | . . . . . . . . . 2 . . 1 1 . Swap 31 | . 1 4 3 2 . 3 7 . 1 4 1 . . 5 Drop 63 | . 7 5 8 3 1 2 5 . 2 18 2 2 3 5 Fire 239 | 4 31 19 18 33 . 12 34 . 15 12 5 6 6 44 Melee 13 | . . . . . . . . . . 13 . . . . Ram . | . . . . . . . . . . . . . . . Kick . | . . . . . . . . . . . . . . . Crush . | . . . . . . . . . . . . . . . Escape Stasis 15 | . . . . . . . . . . 5 . . . 10 Rewire . | . . . . . . . . . . . . . . . Trap . | . . . . . . . . . . . . . . . Miscellaneous . | . . . . . . . . . . . . . . . Route ------- -11/Scrapyard -10/Materials -10/Mines (discovered 2 exits: *Mat x2) -9/Materials (discovered 2 exits: *Mat / *Min) -9/Mines (discovered 3 exits: *Mat x2 / *Exi) -9/Exiles (discovered 2 exits: *Min x2) -8/Mines (discovered 2 exits: *Mat x2) -8/Materials -7/Factory (discovered 2 exits: Low / DSF) -7/DSF -6/Factory -6/Lower Caves -6/Lower Caves -5/Factory (discovered 8 exits: Fac x4 / Upp x2 / *Ext x2) -5/Extension (discovered 2 exits: Fac x2) History --------- Turn | Location | Event 3 | -11/Scrapyard | Discovered new exit (range 15) 110 | -11/Scrapyard | Entered Materials 306 | -10/Materials | Build established: Mutant 324 | -10/Materials | Discovered new exit (range 12) 328 | -10/Materials | Identified exit to Mines 516 | -10/Materials | Entered Mines 517 | -10/Mines | Assembled infested the area 517 | -10/Mines | Learned location of Storage (-7) 714 | -10/Mines | Learned Materials stockpile data 738 | -10/Mines | Met a Derelict shopkeep closing up shop 959 | -10/Mines | Found DCF Scrap (13 items) 959 | -10/Mines | Discovered new exit (range 7) 965 | -10/Mines | Identified exit to Materials 980 | -10/Mines | Discovered exit to Materials (range 16) 1122 | -10/Mines | Received a Rocket Launcher from a helpful Derelict 1710 | -10/Mines | Entered Materials 1710 | -9/Materials | Evolved 2 slots: Propulsion x1, Utility x1 1903 | -9/Materials | Discovered new exit (range 10) 1911 | -9/Materials | Identified exit to Materials 2137 | -9/Materials | Discovered new exit (range 15) 2153 | -9/Materials | Identified exit to Mines 2157 | -9/Materials | Entered Mines 2202 | -9/Mines | Assisted by bots powering up and referring to "LRC-V3" 2259 | -9/Mines | Learned location of Zion (-7) 2300 | -9/Mines | Deemed a non-threat by the Exiles lab entrance 2302 | -9/Mines | Discovered new exit (range 5) 2306 | -9/Mines | Identified exit to Exiles 2490 | -9/Mines | Discovered exit to Materials (range 15) 2509 | -9/Mines | Discovered exit to Materials (range 5) 2889 | -9/Mines | Entered Exiles 2910 | -9/Exiles | Discovered new exit (range 14) 2924 | -9/Exiles | Identified exit to Mines 2947 | -9/Exiles | Met 8R-AWN 2962 | -9/Exiles | Met EX-HEX 2998 | -9/Exiles | Met EX-BIN 3012 | -9/Exiles | Aligned with FarCom system 3013 | -9/Exiles | Given EX-Vault access code 3094 | -9/Exiles | Opened EX-Vault 3102 | -9/Exiles | Found Latent Energy Streamer 3124 | -9/Exiles | Warned to stay clear of 0b10 Research branches 3141 | -9/Exiles | Exiles lab attacked by MAIN.C 3235 | -9/Exiles | Discovered exit to Mines (range 14) 3248 | -9/Exiles | Left Exiles lab with Latent Energy Streamer 3248 | -9/Exiles | Entered Mines 3359 | -8/Mines | Discovered exit to Materials (range 8) 3562 | -8/Mines | Build established: Scavenger-Mutant 3854 | -8/Mines | Discovered exit to Materials (range 9) 4065 | -8/Mines | Entered Materials 4065 | -8/Materials | Evolved 2 slots: Propulsion x1, Utility x1 5502 | -8/Materials | Discovered new exit (range 12) 5515 | -8/Materials | Identified exit to Factory 5546 | -8/Materials | Build established: Mutant 5597 | -8/Materials | System corruption reached 10% 5597 | -8/Materials | Entered Factory 5597 | -7/Factory | Evolved 2 slots: Propulsion x1, Utility x1 5598 | -7/Factory | Identified exit to Lower Caves 5690 | -7/Factory | Identified exit to DSF 5690 | -7/Factory | Entered DSF 5733 | -7/DSF | Additional patrols routed to DSF 5848 | -7/DSF | Core integrity fell below 50% 5850 | -7/DSF | Discovered new exit (range 15) 5859 | -7/DSF | Identified exit to Factory 5875 | -7/DSF | Lost 16 parts (1p7n3u5w) 5895 | -7/DSF | Core integrity fell below 20% 5895 | -7/DSF | Entered Factory 5895 | -6/Factory | Evolved 2 slots: Propulsion x1, Utility x1 6177 | -6/Factory | Discovered new exit (range 7) 6184 | -6/Factory | Identified exit to Lower Caves 6216 | -6/Factory | Build established: Assassin 6744 | -6/Factory | Build established: Mutant 7159 | -6/Factory | Spotted B-75 Beast 7178 | -6/Factory | Build established: Scavenger-Mutant 7244 | -6/Factory | Entered Lower Caves 7660 | -6/Lower Caves | Attacked by a faux Warlord 7761 | -6/Lower Caves | Build established: Hacker-Mutant 7829 | -6/Lower Caves | Lost 3 parts (2n1w) 7927 | -6/Lower Caves | Discovered new exit (range 5) 7931 | -6/Lower Caves | Identified exit to Lower Caves 8148 | -6/Lower Caves | Entered another Lower Caves area 8160 | -6/Lower Caves | Discovered new exit (range 3) 8160 | -6/Lower Caves | Identified exit to Factory 8184 | -6/Lower Caves | Lost 3 parts (1p2n) 8220 | -6/Lower Caves | Spotted B-75 Beast 8358 | -6/Lower Caves | Entered Factory 8358 | -5/Factory | Evolved 2 slots: Power x1, Utility x1 8359 | -5/Factory | Identified exit to Extension 8388 | -5/Factory | Lost 5 parts (1p1u3w) 8761 | -5/Factory | Identified exit to Factory 8761 | -5/Factory | Identified exit to Upper Caves 8933 | -5/Factory | Repaired Broken Flexi-carbon Leg 9012 | -5/Factory | Entered Extension 9158 | -5/Extension | Rescued a captive Derelict 9159 | -5/Extension | Rescued a captive Derelict 9284 | -5/Extension | Lost 3 parts (2n1u) 9387 | -5/Extension | Disrupted transfer network 9483 | -5/Extension | Spotted B-75 Beast 9493 | -5/Extension | Spotted B-75 Beast 9504 | -5/Extension | Self-destructed Last Messages --------------- 09490_ Machine disabled. 09492_ HV Slug penetrates Wall. 09497_ Knocked back. 09497_ Critical hit (Meltdown: +330). 09498_ Penetrated by Slug. 09498_ Slug penetrates Wall. 09498_ HV Slug penetrates B-75 Beast. 09498_ HV Slug penetrates Wall. 09500_ Machine disabled. 09500_ Adv. Plasma Cannon destroyed. 09501_ Penetrated by Slug. 09501_ Thunder Leg destroyed. 09501_ Penetrated by Slug. 09502_ Imp. Coolant Injector destroyed. 09502_ Critical hit (Blast). 09503_ Wave Gun destroyed. 09503_ Slug penetrates K-01 Serf. 09503_ K-01 Serf destroyed. 09504_ Carbon-fiber Leg destroyed. 09504_ Penetrated by Slug. Map ----- +----------------------------------------------------+ | ????????????"%+% #??????????????????????????? | | ????????????#=# #??????????????????????????? | | ????????????### % #??????????????????????????? | | ???????????#%## #??????????????????????????? | | ???????????##?# #??????????????????????????? | | ??????????????####### #??????????????????????????? | | ????????????????????# #??????????????????????????? | | ????????????????????# #??????????????????????????? | | ????????????????????# #??????????????????????????? | | ????????????????????# #??????????????????????????? | | ????????????????????# #??????????????????????????? | | ????????????????????# #??????????????????????????? | | ????????????????????# #??????????????????????????? | | ????????????????????# #??????????????????????????? | | ????????????????????# #??????????????????????????? | | ????????????????????# #??????????????????????????? | | ????????????????????# #??????????????????????????? | | ????????????????????# #??????????????????????????? | | ????????????????????#%##?????????????????????????? | | ????????????????????# ;#######???#???????????????? | | ??????????????????### ;;;Y;# ### ##??????????????? | | ??????????????????#" % Y " ""#?????????????? | | ??????????????????# " " #?????????????? | | ??????????????????# #?????????????? | | ??????????????????# % #?????????????? | | ??????????????????# @ #?????????????? | | ??????????? R ????????? | | ?????????? BB ????????? | | ??????????? BB ??w??????? | | ??????????? ! u BB A ?????????? | | ???????????? %*u BB w k??????????? | | ???????????######## ####??????????? | | ??????????????????# #?????????????? | | ??????????????????# #?????????????? | | ??????????????????# #?????????????? | | ??????????????????# #?????????????? | | ??????????????????######T#"""#######?????????????? | | ????????????????????????#??